[Event "FIDE Women World-chT-KO 2021"]
[Site "Sitges"]
[Date "2021.10.01"]
[Round "2.2"]
[White "Tania, Sachdev"]
[Black "Arabidze, Meri"]
[Result "1-0"]
[ECO "E21"]
[WhiteElo "2392"]
[BlackElo "2441"]
[Annotator "ChessBase"]
[PlyCount "107"]
[EventDate "2021.09.30"]
[EventType "team-tourn"]
[EventCountry "ESP"]
[SourceTitle "playchess.com"]
[Source "ChessBase"]
[SourceQuality "1"]
[WhiteTeam "India"]
[BlackTeam "Georgia"]
[WhiteTeamCountry "IND"]
[BlackTeamCountry "GEO"]
[TimeControl "2700+10"]

1. d4 {[%emt 0:00:02]} Nf6 {[%emt 0:00:05]} 2. c4 {[%emt 0:00:02]} e6 {[%emt 0:
00:03]} 3. Nf3 {[%emt 0:00:02]} b6 {[%emt 0:00:04]} 4. Nc3 {[%emt 0:00:52]} Bb4
{[%emt 0:00:07]} 5. Qb3 {[%emt 0:00:02]} c5 {[%emt 0:00:12]} 6. dxc5 {[%emt 0:
00:30]} bxc5 {[%emt 0:02:39]} 7. a3 Ba5 {[%emt 0:02:10]} 8. Bg5 {[%emt 0:10:14]
} Nc6 {[%emt 0:01:03]} 9. e3 {[%emt 0:01:51]} h6 10. Bh4 {[%emt 0:03:55]} Rb8 {
[%emt 0:05:58]} 11. Qc2 {[%emt 0:00:01]} g5 {[%emt 0:01:33]} 12. Bg3 {[%emt 0:
00:02]} Rxb2 {[%emt 0:00:38]} 13. Qxb2 {[%emt 0:00:26]} Ne4 {[%emt 0:00:01]}
14. O-O-O {[%emt 0:05:41]} Bxc3 {[%emt 0:00:21]} 15. Qb3 {[%emt 0:02:34]} Bg7 {
[%emt 0:00:47]} 16. Bd3 {[%emt 0:02:52]} Nxg3 {[%emt 0:01:03]} 17. hxg3 {
[%emt 0:00:07]} O-O {[%emt 0:02:12]} 18. Kd2 {[%emt 0:01:44]} d5 {[%emt 0:04:
59]} 19. Ke2 {[%emt 0:01:12]} d4 {[%emt 0:02:19]} 20. Qb5 {[%emt 0:07:51]} Qd6
{[%emt 0:01:30]} 21. Nxg5 {[%emt 0:02:13]} f5 {[%emt 0:00:01]} 22. Nf3 {
[%emt 0:00:51]} Bd7 {[%emt 0:00:02]} 23. Qb1 {[%emt 0:00:56]} Rb8 {[%emt 0:03:
15]} 24. Qc1 {[%emt 0:00:02]} Rb3 {[%emt 0:01:11]} 25. exd4 {[%emt 0:02:13]}
Nxd4+ {[%emt 0:02:49]} 26. Nxd4 {[%emt 0:00:03]} cxd4 {[%emt 0:00:11]} 27. Rxh6
{[%emt 0:00:33]} Qe5+ {[%emt 0:04:36]} 28. Kf1 {[%emt 0:00:02]} Bxh6 {[%emt 0:
03:55]} 29. Qxh6 {[%emt 0:00:01]} Qh8 {[%emt 0:02:00]} 30. Qg5+ {[%emt 0:00:17]
} Kf7 {[%emt 0:00:12]} 31. Kg1 {[%emt 0:00:02]} Qf6 {[%emt 0:01:26]} 32. Qh5+ {
[%emt 0:00:07]} Kg7 {[%emt 0:00:01]} 33. g4 {[%emt 0:01:01]} Bc6 {[%emt 0:00:
41]} 34. gxf5 {[%emt 0:00:22]} e5 {[%emt 0:00:32]} 35. Be4 {[%emt 0:00:25]}
Bxe4 {[%emt 0:00:51]} 36. Qg4+ {[%emt 0:00:01]} Kf7 {[%emt 0:00:20]} 37. Qxe4 {
[%emt 0:00:02]} Qd6 {[%emt 0:00:09]} 38. Rd3 {[%emt 0:01:08]} Qxa3 {[%emt 0:01:
02]} 39. Qd5+ {[%emt 0:00:27]} Kf8 {[%emt 0:00:02]} 40. Qd8+ {[%emt 0:00:18]}
Kf7 {[%emt 0:00:04]} 41. Qd7+ {[%emt 0:00:08]} Kf8 {[%emt 0:00:13]} 42. Qd8+ {
[%emt 0:00:19]} Kf7 {[%emt 0:00:01]} 43. Qd5+ {[%emt 0:00:02]} Kf8 {[%emt 0:00:
05]} 44. Rxb3 {[%emt 0:00:25]} Qxb3 {[%emt 0:00:02]} 45. Qxe5 Qxc4 {[%emt 0:00:
50]} 46. f6 {[%emt 0:00:25]} Qc1+ {[%emt 0:00:18]} 47. Kh2 {[%emt 0:00:02]}
Qh6+ {[%emt 0:00:09]} 48. Kg3 {[%emt 0:00:04]} Qg6+ {[%emt 0:00:04]} 49. Kf3 {
[%emt 0:00:19]} Qd3+ {[%emt 0:00:20]} 50. Kf4 {[%emt 0:00:17]} Qd2+ {[%emt 0:
00:09]} 51. Kg4 {[%emt 0:00:02]} Qd1+ {[%emt 0:00:12]} 52. f3 {[%emt 0:00:03]}
Kg8 {[%emt 0:00:10]} 53. Qg5+ {[%emt 0:00:06]} Kf8 {[%emt 0:00:02]} 54. Qg7+ {
[%emt 0:00:01]} 1-0